bitfinex-derivatives/quotes_BTCF0:USTF0_20250211
["timestamp","ask_amount","ask_price","bid_price","bid_amount"]
[1739234359539,0.0317,98039.0,98034.0,0.15189299]
[1739234359949,0.0317,98039.0,98034.0,0.15289299]
[1739234360440,0.04258242,98039.0,98034.0,0.15289299]
[1739234361046,0.04258242,98039.0,98034.0,0.002]
[1739234364445,0.3608,98035.0,98034.0,0.002]
[1739234364743,0.04258242,98039.0,98034.0,0.002]
[1739234364744,0.01088242,98039.0,98034.0,0.002]
[1739234364951,0.3608,98065.0,98038.0,0.3608]
[1739234365152,0.01969909,98043.0,98040.0,0.07651899]
[1739234365445,0.01969909,98043.0,98039.0,0.0325]
[1739234367145,0.02069909,98043.0,98039.0,0.0335]
[1739234367344,0.02169909,98043.0,98039.0,0.0345]
[1739234367741,0.02169909,98043.0,98042.0,0.2039638]
[1739234369040,0.02069909,98043.0,98042.0,0.2039638]
[1739234369246,0.01969909,98043.0,98042.0,0.2059638]
[1739234369849,0.01969909,98043.0,98042.0,0.2049638]
[1739234370055,0.01969909,98043.0,98042.0,0.2059638]
[1739234375359,0.6950426,98052.0,98045.0,0.2039572]
[1739234375655,0.6950426,98052.0,98048.0,0.3608]
[1739234376647,0.01983833,98048.0,98029.0,0.3608]
[1739234376847,0.0315,98047.0,98034.0,0.2039789]
[1739234377047,0.0621,98047.0,98034.0,0.2039789]
[1739234377244,0.0621,98047.0,98045.0,0.2039563]
[1739234377453,0.0315,98047.0,98045.0,0.2039563]
[1739234378949,0.0325,98047.0,98045.0,0.2039563]
[1739234379149,0.0335,98047.0,98045.0,0.2039563]
[1739234379351,0.0335,98047.0,98039.0,0.2039684]
[1739234379550,0.0335,98047.0,98045.0,0.001]
[1739234379950,0.0335,98047.0,98045.0,0.002]
[1739234380149,0.002,98047.0,98045.0,0.002]
[1739234380359,0.002,98047.0,98046.0,0.3608]
[1739234380558,0.02537979,98047.0,98046.0,0.3608]
[1739234381358,0.02537979,98047.0,98045.0,0.001]
[1739234382057,0.02337979,98047.0,98045.0,0.001]
[1739234382267,0.02437979,98047.0,98045.0,0.002]
[1739234382564,0.02437979,98047.0,98046.0,0.001]
[1739234383153,1.40337979,98047.0,98045.0,0.001]
[1739234383361,1.40437979,98047.0,98045.0,0.002]
[1739234383563,0.0631,98046.0,98045.0,0.002]
[1739234383757,0.0631,98046.0,98045.0,0.001]
[1739234384965,0.0631,98046.0,98036.0,0.18094836]
[1739234385165,0.13961899,98046.0,98036.0,0.18094836]
[1739234386070,0.14061899,98046.0,98045.0,0.002]
[1739234386266,0.0641,98046.0,98045.0,0.002]
[1739234386571,0.0651,98046.0,98045.0,0.001]
[1739234387570,0.0651,98046.0,98036.0,0.18294836]
[1739234388074,0.14161899,98046.0,98036.0,0.002]
[1739234388270,0.2039645,98042.0,98036.0,0.002]
[1739234388469,0.0317,98041.0,98036.0,0.002]
[1739234388665,0.3608,98040.0,98036.0,0.001]
[1739234389274,0.3608,98040.0,98036.0,0.002]
[1739234389770,0.3618,98040.0,98036.0,0.001]
[1739234390174,0.37076806,98040.0,98036.0,0.001]
[1739234390560,0.37376806,98040.0,98036.0,0.002]
[1739234392178,0.37076806,98040.0,98036.0,0.001]
[1739234392473,0.37276806,98040.0,98036.0,0.002]
[1739234394673,0.01196806,98040.0,98036.0,0.002]
[1739234400376,0.3608,98039.0,98026.0,0.15799191]
[1739234400570,0.07651899,98036.0,98026.0,0.15799191]
[1739234401372,0.07651899,98036.0,98025.0,0.3608]
[1739234401779,0.01196806,98040.0,98034.0,0.3608]
[1739234401972,0.08848705,98040.0,98034.0,0.3608]
[1739234402576,0.007,98036.0,98034.0,0.3608]
[1739234403280,0.015,98039.0,98034.0,0.3618]
[1739234403475,0.10748705,98040.0,98034.0,0.3628]
[1739234403676,0.10048705,98040.0,98034.0,0.3618]
[1739234403984,0.007,98036.0,98034.0,0.3628]
[1739234405080,0.007,98036.0,98034.0,0.3618]
[1739234405282,0.022,98036.0,98034.0,0.3628]
[1739234405585,0.015,98036.0,98034.0,0.3628]
[1739234406084,0.022,98036.0,98034.0,0.3628]
[1739234413384,0.022,98036.0,98034.0,0.002]
[1739234413587,0.0317,98035.0,98025.0,0.323298]
[1739234413789,0.10821899,98035.0,98025.0,0.323298]
[1739234413986,0.0315,98034.0,98025.0,0.323298]
[1739234414188,0.0315,98034.0,98021.0,0.000153]
[1739234414189,0.3608,98030.0,98021.0,0.000153]
[1739234414382,0.032,98029.0,98021.0,0.000153]
[1739234414682,0.032,98029.0,98025.0,0.001]
[1739234415292,0.032,98029.0,98025.0,0.002]
[1739234415589,0.013,98029.0,98025.0,0.001]
[1739234415787,0.1702,98028.0,98021.0,0.30279628]
[1739234415986,0.1702,98028.0,98025.0,0.001]
[1739234416392,0.1702,98028.0,98025.0,0.002]
[1739234416995,0.1762,98028.0,98025.0,0.001]
[1739234417897,0.1912,98028.0,98025.0,0.001]
[1739234418591,0.1922,98028.0,98025.0,0.002]
[1739234419602,0.0638,98027.0,98025.0,0.002]
[1739234420500,0.203998,98026.0,98021.0,0.000153]
[1739234420706,0.3608,98022.0,98010.0,0.30164328]
[1739234420893,0.07651899,98020.0,98010.0,0.30164328]
[1739234421197,0.01984659,98011.0,98010.0,0.24185205]
[1739234421391,0.38064659,98011.0,98010.0,0.24185205]
[1739234422493,0.38564659,98011.0,98010.0,0.20109096]
[1739234422696,0.38564659,98011.0,98010.0,0.17348096]
[1739234422996,0.42074659,98011.0,98010.0,0.17348096]
[1739234423203,1.80374659,98011.0,98002.0,0.26904028]
[1739234423391,0.3608,98003.0,98002.0,0.26904028]
[1739234424500,0.5648449,98003.0,98002.0,0.20144428]
[1739234424700,0.2040581,97997.0,97977.0,0.00084]
[1739234424904,0.07651899,97988.0,97970.0,0.2041127]
[1739234425299,0.07651899,97988.0,97971.0,0.2041101]
[1739234425802,0.07651899,97988.0,97973.0,0.03075308]
[1739234426002,0.01886886,97979.0,97973.0,0.03075308]
[1739234426806,0.01886886,97979.0,97978.0,0.0617]
[1739234427194,0.03050958,97979.0,97978.0,0.0617]
[1739234427590,0.03050958,97979.0,97978.0,0.0627]
[1739234428305,0.04550958,97979.0,97978.0,0.0627]
[1739234428696,0.02664072,97979.0,97978.0,0.0617]
[1739234428897,0.03164072,97979.0,97978.0,0.0617]
[1739234429307,0.02664072,97979.0,97978.0,0.0617]
[1739234429604,0.03364072,97979.0,97978.0,0.0627]
[1739234431398,0.03364072,97979.0,97978.0,0.002]
[1739234432891,0.2041048,97975.0,97973.0,0.00015308]
[1739234433091,0.2041048,97975.0,97960.0,0.0948]
[1739234433298,0.43731899,97970.0,97960.0,0.0948]
[1739234433507,0.03364072,97979.0,97970.0,0.2041123]
[1739234433807,0.01861316,97971.0,97970.0,0.2041123]
[1739234434808,0.01861316,97971.0,97969.0,0.72244]
[1739234435006,0.01861316,97971.0,97969.0,0.7216]
[1739234435198,0.01861316,97971.0,97961.0,0.00015308]
[1739234435199,0.3608,97970.0,97961.0,0.00015308]
[1739234437705,0.3658,97970.0,97961.0,0.00015308]
[1739234438407,0.5699147,97970.0,97961.0,0.00015308]
[1739234439103,0.3658,97970.0,97961.0,0.00015308]
[1739234440205,0.3608,97962.0,97961.0,0.00015308]
[1739234440812,0.3909,97962.0,97961.0,0.00015308]
[1739234441208,0.2041343,97961.0,97950.0,0.0321]
[1739234441416,0.3608,97952.0,97950.0,0.0321]
[1739234441711,0.15164,97951.0,97950.0,0.0321]
[1739234442499,0.15164,97951.0,97950.0,0.0331]
[1739234442914,0.15164,97951.0,97950.0,0.0381]
[1739234444412,0.15264,97951.0,97950.0,0.0381]
[1739234444611,0.15264,97951.0,97950.0,0.0371]
[1739234444805,0.15264,97951.0,97950.0,0.0381]
[1739234446214,0.15264,97951.0,97950.0,0.05139783]
[1739234446414,0.15264,97951.0,97950.0,0.0381]
[1739234447821,0.15264,97951.0,97950.0,0.05140609]
[1739234448007,0.15264,97951.0,97950.0,0.0381]
[1739234448203,0.15264,97951.0,97950.0,0.05140628]
[1739234448603,0.15264,97951.0,97950.0,0.0381]
[1739234449521,0.15264,97951.0,97950.0,0.05118461]
[1739234450713,0.15264,97951.0,97950.0,0.07232697]
[1739234451710,0.15264,97951.0,97950.0,0.05118461]
[1739234452214,0.001,97951.0,97950.0,0.07182774]
[1739234452420,0.1444,97964.0,97950.0,0.09763938]
[1739234452608,0.1444,97964.0,97963.0,0.3608]
[1739234452808,0.1444,97964.0,97963.0,0.59865414]
[1739234453212,0.1444,97964.0,97963.0,0.03372774]
[1739234453709,0.1444,97964.0,97958.0,0.2041382]
[1739234454105,0.1484,97964.0,97958.0,0.2041382]
[1739234454318,0.1484,97964.0,97960.0,0.2041345]
[1739234454510,0.14662967,97964.0,97962.0,0.2041303]
[1739234455309,0.002,97964.0,97962.0,0.2041303]
[1739234455811,0.001,97964.0,97962.0,0.2041303]
[1739234456011,0.001,97964.0,97961.0,0.0311]
[1739234456012,0.03007799,97971.0,97963.0,0.3608]
[1739234456212,0.03007799,97971.0,97963.0,0.5649266]
[1739234456904,0.03007799,97971.0,97965.0,0.2041227]
[1739234457516,0.03307799,97971.0,97966.0,0.2041207]
[1739234458117,0.03907799,97971.0,97966.0,0.2041207]
[1739234459123,0.04007799,97971.0,97966.0,0.2051207]
[1739234459819,0.14012,97970.0,97966.0,0.2051207]
[1739234460417,0.04007799,97971.0,97966.0,0.2051207]
[1739234460623,0.0309,97990.0,97966.0,0.001]
[1739234460917,0.1394,97989.0,97986.0,0.2040793]
[1739234461221,0.01999238,97987.0,97986.0,0.2040793]
[1739234462218,0.01999238,97987.0,97986.0,0.2050793]
[1739234462918,0.007,97990.0,97988.0,0.2040762]
[1739234463117,0.7083982,97996.0,97995.0,0.2040616]
[1739234463618,0.12963026,98010.0,97993.0,0.3608]
[1739234463820,0.15023692,98010.0,98009.0,0.5648324]
[1739234464622,0.0114291,98022.0,98009.0,0.7216]
[1739234464817,0.00015308,98019.0,98017.0,0.3608]
[1739234465924,0.01971601,98018.0,98017.0,0.3608]
[1739234468120,0.02471601,98018.0,98017.0,0.3608]
[1739234470422,0.76283899,98030.0,98017.0,0.3608]
[1739234470728,0.02127992,98021.0,98016.0,0.2040162]
[1739234470931,0.02127992,98021.0,98020.0,0.3608]
[1739234472530,0.03027992,98021.0,98020.0,0.3618]
[1739234473930,0.02127992,98021.0,98020.0,0.3608]
[1739234474230,0.02827992,98021.0,98020.0,0.3608]
[1739234474426,0.02827992,98021.0,98020.0,0.5648095]
[1739234474932,0.02827992,98021.0,98020.0,0.5658095]
[1739234476933,0.00015308,98030.0,98029.0,0.2039908]
[1739234477132,0.00015308,98030.0,98029.0,0.5647908]
[1739234477334,0.13128,98042.0,98029.0,0.3608]
[1739234477532,0.02118085,98062.0,98041.0,0.3608]
[1739234477736,0.0317,98069.0,98053.0,0.3608]
[1739234478035,0.0317,98069.0,98042.0,0.0612]
[1739234478036,0.3608,98056.0,98033.0,0.2039814]
[1739234478237,0.3608,98046.0,98040.0,0.2039673]
[1739234478929,0.3608,98046.0,98042.0,0.2039626]
[1739234479324,0.3608,98046.0,98044.0,0.2039581]
[1739234479917,0.3608,98046.0,98045.0,0.0137124]
[1739234480834,0.3608,98046.0,98045.0,0.03628633]
[1739234481032,0.3608,98046.0,98045.0,0.0137124]
[1739234481226,0.3608,98046.0,98045.0,0.03629373]
[1739234483030,0.3608,98046.0,98045.0,0.06511893]
[1739234483537,0.3618,98046.0,98045.0,0.06511893]
[1739234483935,0.3638,98046.0,98045.0,0.03629373]
[1739234484335,0.3618,98046.0,98045.0,0.06460215]
[1739234484528,0.3638,98046.0,98045.0,0.06460215]
[1739234484934,0.3638,98046.0,98045.0,0.03629373]
[1739234485338,0.3638,98046.0,98045.0,0.06415222]
[1739234486237,0.3638,98046.0,98045.0,0.36415222]
[1739234486438,0.3638,98046.0,98045.0,0.06415222]
[1739234488138,0.18012469,98046.0,98045.0,0.53038139]
[1739234488825,0.18012469,98046.0,98045.0,0.46622917]
[1739234490536,0.18012469,98046.0,98045.0,0.82617817]
[1739234490736,0.3608,98056.0,98045.0,0.82817817]
[1739234491141,0.3608,98056.0,98054.0,0.2039377]
[1739234491735,0.04226221,98068.0,98054.0,0.2039377]
[1739234492045,0.001,98056.0,98046.0,0.0618]
[1739234492344,0.001,98056.0,98054.0,0.2039377]
[1739234493347,0.001,98056.0,98055.0,0.94741917]
[1739234493843,0.02492107,98056.0,98055.0,0.94741917]
[1739234494161,0.3608,98061.0,98055.0,0.94741917]
[1739234494162,0.17143494,98061.0,98055.0,0.94741917]
[1739234494441,0.17143494,98061.0,98055.0,0.57719867]
[1739234494643,0.001,98056.0,98055.0,0.13293407]
[1739234494944,0.004,98056.0,98055.0,0.07145372]
[1739234495341,0.003,98056.0,98055.0,0.07145372]
[1739234495542,0.003,98056.0,98055.0,0.0915584]
[1739234495932,0.004,98056.0,98055.0,0.11789477]
[1739234496238,0.004,98056.0,98055.0,0.78661731]
[1739234496444,0.02095779,98056.0,98055.0,0.78661731]
[1739234497239,0.02095779,98056.0,98055.0,0.79061731]
[1739234497439,0.01995779,98056.0,98055.0,0.79061731]
[1739234497948,0.01995779,98056.0,98055.0,0.76328094]
[1739234498442,0.01995779,98056.0,98055.0,0.78852716]
[1739234498646,0.01995779,98056.0,98055.0,0.11980462]
[1739234498846,0.01995779,98056.0,98055.0,0.03566843]
[1739234499149,0.01995779,98056.0,98055.0,0.003]
[1739234499654,0.0313,98068.0,98055.0,0.003]
[1739234499849,0.02162468,98060.0,98052.0,0.51462103]
[1739234500148,0.02162468,98060.0,98052.0,0.43973693]
[1739234500447,0.02162468,98060.0,98055.0,0.003]
[1739234500647,0.02162468,98060.0,98052.0,0.22786513]
[1739234500846,0.02162468,98060.0,98055.0,0.001]
[1739234501243,0.02162468,98060.0,98054.0,0.2039377]
[1739234502639,0.02162468,98060.0,98055.0,0.001]
[1739234503035,0.0313,98068.0,98055.0,0.001]
[1739234503242,0.02144357,98060.0,98055.0,0.001]
[1739234503541,0.02144357,98060.0,98054.0,0.2049377]
[1739234504250,0.02144357,98060.0,98054.0,0.2039377]
[1739234504450,0.02144357,98060.0,98055.0,0.001]
[1739234506550,0.02144357,98060.0,98054.0,0.2049377]
[1739234506749,0.02144357,98060.0,98054.0,0.001]
[1739234506951,0.02144357,98060.0,98057.0,0.2039326]
[1739234508353,0.02244357,98060.0,98057.0,0.2039326]
[1739234511163,0.02244357,98060.0,98059.0,0.2039285]
[1739234511352,0.02144357,98060.0,98059.0,0.2039285]
[1739234511558,0.02244357,98060.0,98059.0,0.2039285]
[1739234512257,0.02344357,98060.0,98059.0,0.2039285]
[1739234513552,0.02244357,98060.0,98059.0,0.2039285]
[1739234513759,0.02344357,98060.0,98059.0,0.2039285]
[1739234518857,0.002,98060.0,98059.0,0.2039285]
[1739234519161,0.38263699,98060.0,98046.0,0.44553176]
[1739234519363,0.07651899,98056.0,98046.0,0.24157736]
[1739234519562,0.0933,98055.0,98050.0,0.2039458]
[1739234520253,0.0933,98055.0,98054.0,0.24157736]
[1739234522261,0.0933,98055.0,98054.0,0.24457736]
[1739234522664,0.0953,98055.0,98054.0,0.24457736]
[1739234522967,0.0983,98055.0,98054.0,0.24157736]
[1739234523266,0.11869703,98055.0,98054.0,0.24157736]
[1739234524272,0.11669703,98055.0,98054.0,0.24157736]
[1739234524562,0.11669703,98055.0,98047.0,0.2039514]
[1739234524563,0.11869703,98055.0,98049.0,0.18137837]
[1739234524866,0.3608,98050.0,98049.0,0.18137837]
[1739234526057,0.3628,98050.0,98049.0,0.18137837]
[1739234526367,0.3668,98050.0,98049.0,0.18137837]
[1739234528554,0.3668,98050.0,98043.0,0.24157736]
[1739234528555,0.3668,98050.0,98043.0,0.18137837]
[1739234529666,0.3628,98050.0,98043.0,0.18137837]
[1739234529969,0.13324,98049.0,98043.0,0.18137837]
[1739234530369,0.3608,98046.0,98043.0,0.18137837]
[1739234531972,0.3648,98046.0,98043.0,0.18137837]
[1739234532169,0.50256,98046.0,98043.0,0.2039614]
[1739234532472,0.50856,98046.0,98043.0,0.2049614]
[1739234532874,0.50856,98046.0,98043.0,0.001]
[1739234533075,0.50356,98046.0,98033.0,0.000153]
[1739234533274,0.51356,98046.0,98043.0,0.001]
[1739234533864,0.51356,98046.0,98033.0,0.000153]
[1739234534064,0.3608,98034.0,98033.0,0.000153]
[1739234535275,0.3608,98034.0,98030.0,0.16037818]
[1739234535464,0.3608,98031.0,98012.0,0.36128308]
[1739234535778,0.7216,98013.0,98012.0,0.36128308]
[1739234535973,0.3608,98014.0,98012.0,0.36128308]
[1739234536166,0.3608,98027.0,98021.0,0.2040068]
[1739234536368,0.3608,98027.0,98024.0,0.2040006]
[1739234538275,0.3618,98027.0,98024.0,0.2040006]
[1739234538473,0.001,98027.0,98026.0,0.5647971]
[1739234538776,0.000153,98034.0,98026.0,0.3608]
[1739234538977,0.000153,98034.0,98033.0,0.2039826]
[1739234539279,0.1524855,98042.0,98041.0,0.203966]
[1739234539475,0.1524855,98042.0,98041.0,0.564766]
[1739234540672,0.1534855,98042.0,98041.0,0.572766]
[1739234541473,0.1534855,98042.0,98041.0,0.574766]
[1739234542076,0.1524855,98042.0,98041.0,0.566766]
[1739234542288,0.1534855,98042.0,98041.0,0.573766]
[1739234542487,0.001,98042.0,98041.0,0.573766]
[1739234545680,0.3608,98064.0,98063.0,0.2039202]
[1739234546076,0.07651899,98080.0,98063.0,0.2039202]
[1739234546272,0.13248,98075.0,98063.0,0.2039202]
[1739234546673,0.13248,98075.0,98067.0,0.2039101]
[1739234547582,0.10808491,98069.0,98067.0,0.2039101]
[1739234547780,0.11008491,98069.0,98067.0,0.2039101]
[1739234548278,0.10808491,98069.0,98067.0,0.2039101]
[1739234549191,0.1524855,98083.0,98063.0,0.7216]
[1739234549484,0.3608,98085.0,98076.0,0.2038913]
[1739234550585,0.3608,98085.0,98075.0,0.3608]
[1739234550885,0.37454257,98085.0,98075.0,0.3608]
[1739234551074,0.37454257,98085.0,98076.0,0.0314]
[1739234551280,0.37454257,98085.0,98076.0,0.2667928]
[1739234551482,0.37554257,98085.0,98076.0,0.2667928]
[1739234551883,0.01474257,98085.0,98076.0,0.2667928]
[1739234552389,0.01574257,98085.0,98076.0,0.2667928]
[1739234553078,0.01474257,98085.0,98076.0,0.2687928]
[1739234553287,0.01374257,98085.0,98076.0,0.2687928]
[1739234553488,0.21395776,98086.0,98076.0,0.2687928]
[1739234553890,0.21395776,98086.0,98076.0,0.2697928]
[1739234554086,0.15234441,98091.0,98076.0,0.2697928]
[1739234554287,0.15234441,98091.0,98076.0,0.2687928]
[1739234554989,0.15234441,98091.0,98076.0,0.2677928]
[1739234555184,0.15234441,98091.0,98080.0,0.07651899]
[1739234555688,0.15434441,98091.0,98080.0,0.07651899]
[1739234556485,0.15234441,98091.0,98080.0,0.07651899]
[1739234556685,0.15334441,98091.0,98080.0,0.07651899]
[1739234557077,0.3608,98085.0,98075.0,0.3608]
[1739234557986,0.3608,98076.0,98074.0,0.000153]
[1739234558190,0.0634,98075.0,98074.0,0.000153]
[1739234558384,0.0939,98075.0,98074.0,0.000153]
[1739234559777,0.0969,98075.0,98074.0,0.000153]
[1739234560290,0.0989,98075.0,98074.0,0.000153]
[1739234561690,0.0684,98075.0,98074.0,0.000153]
[1739234562084,0.005,98075.0,98074.0,0.000153]
[1739234562881,0.3608,98094.0,98089.0,0.2038646]
[1739234563191,0.37489011,98094.0,98092.0,0.2038589]
[1739234563486,0.01409011,98094.0,98092.0,0.2038589]
[1739234563693,0.1,98100.0,98088.0,0.3608]
[1739234563986,0.1,98100.0,98098.0,0.2038458]
[1739234564191,0.1,98100.0,98090.0,0.07651899]
[1739234564384,0.3608,98099.0,98094.0,0.2038539]
[1739234564687,0.1,98100.0,98094.0,0.2038539]
[1739234565596,0.003,98099.0,98098.0,0.2038474]
[1739234566188,0.103,98100.0,98098.0,0.2038474]
[1739234567891,0.003,98099.0,98098.0,0.2048474]
[1739234568584,0.1,98100.0,98098.0,0.2048474]
[1739234568790,0.103,98100.0,98098.0,0.2048474]
[1739234569289,0.103,98100.0,98098.0,0.2038474]
[1739234569598,0.003,98099.0,98098.0,0.2048474]
[1739234570299,0.15234441,98118.0,98098.0,0.2048474]
[1739234570300,0.18281329,98127.0,98126.0,0.2037892]
[1739234570599,0.00052001,98141.0,98140.0,0.2037601]
[1739234570792,0.0311,98144.0,98140.0,0.2037601]
[1739234572288,0.0136241,98156.0,98143.0,0.564553]
[1739234572493,0.30464123,98172.0,98144.0,0.18609686]
[1739234572702,0.3036372,98200.0,98144.0,0.18609686]
[1739234572703,0.3608,98189.0,98171.0,0.7216]
[1739234572896,0.1,98200.0,98180.0,0.07651899]
[1739234573097,0.1,98200.0,98172.0,0.1035559]
[1739234573098,0.2434635,98177.0,98172.0,0.1035559]
[1739234573394,0.2434635,98177.0,98171.0,0.36172]
[1739234573599,0.2434635,98177.0,98171.0,0.3608]
[1739234574096,0.2434635,98177.0,98171.0,0.4643559]
[1739234574307,0.11551325,98177.0,98175.0,0.2036864]
[1739234574596,0.11551325,98177.0,98176.0,0.01273744]
[1739234574990,0.11551325,98177.0,98176.0,0.31273744]
[1739234575387,0.11551325,98177.0,98175.0,0.005]
[1739234575795,0.31919805,98177.0,98175.0,0.005]
[1739234576698,0.31919805,98177.0,98175.0,0.007]
[1739234576898,0.3608,98176.0,98175.0,0.007]
[1739234577396,0.31919805,98177.0,98175.0,0.007]
[1739234578100,0.3608,98199.0,98175.0,0.007]
[1739234578101,0.00056001,98206.0,98176.0,0.4683559]
[1739234578298,0.3608,98209.0,98190.0,0.11412679]
[1739234579200,0.3608,98209.0,98190.0,0.11427954]
[1739234579598,0.2036195,98208.0,98190.0,0.00015275]
[1739234579805,0.2036426,98197.0,98190.0,0.00015275]
[1739234579998,0.0311,98213.0,98190.0,0.00015275]
[1739234579999,0.2036543,98191.0,98190.0,0.00015275]
[1739234580302,0.2036425,98197.0,98190.0,0.00015275]
[1739234580690,0.2036496,98194.0,98190.0,0.00015275]
[1739234581095,0.3608,98192.0,98170.0,0.1035559]
[1739234581308,0.2036758,98181.0,98170.0,0.1035559]
[1739234581597,0.2036758,98181.0,98167.0,0.3608]
[1739234582000,0.0661,98199.0,98175.0,0.3608]
[1739234582303,0.2036575,98190.0,98175.0,0.3608]
[1739234582606,0.00015192,98197.0,98185.0,0.3608]
[1739234583703,0.00015192,98197.0,98186.0,0.2036643]
[1739234584712,0.00015192,98197.0,98185.0,0.3608]
[1739234584894,0.3608,98190.0,98177.0,0.00015275]
[1739234585099,0.3608,98180.0,98177.0,0.00015275]
[1739234585309,0.3608,98190.0,98177.0,0.00015275]
[1739234585904,0.3608,98190.0,98186.0,0.001]
[1739234586410,0.3608,98190.0,98177.0,0.00015275]
[1739234586411,0.3608,98190.0,98177.0,0.00215275]
[1739234586910,0.3608,98190.0,98177.0,0.00015275]
[1739234587410,0.3605428,98190.0,98177.0,0.00515275]
[1739234587612,0.3605428,98190.0,98177.0,0.00715275]
[1739234588823,0.3608,98182.0,98177.0,0.00715275]
[1739234589324,0.3605428,98190.0,98177.0,0.00715275]
[1739234589821,0.20768929,98190.0,98177.0,0.00715275]
[1739234590325,0.20768929,98190.0,98178.0,0.2036797]
[1739234591421,0.20768929,98190.0,98177.0,0.00715275]
[1739234592010,0.32181608,98190.0,98177.0,0.00215275]
[1739234592219,0.3608,98178.0,98160.0,0.2037171]
[1739234592417,0.3608,98178.0,98177.0,0.002]
[1739234592616,0.3608,98178.0,98162.0,0.203714]
[1739234593017,0.3608,98170.0,98153.0,0.2037325]
[1739234593323,0.0665,98169.0,98160.0,0.00015275]
[1739234593825,0.3608,98162.0,98160.0,0.00015275]
[1739234594021,0.2037166,98161.0,98142.0,0.2037555]
[1739234594321,0.3608,98162.0,98138.0,0.3608]
[1739234594322,0.2037245,98158.0,98138.0,0.3608]
[1739234594521,0.3608,98154.0,98138.0,0.3608]
[1739234595026,0.2037334,98153.0,98138.0,0.3608]
[1739234595226,0.2037334,98153.0,98139.0,0.00015283]
[1739234595529,0.3608,98154.0,98147.0,0.15217163]
[1739234595727,0.2037369,98152.0,98139.0,0.00015283]
[1739234596021,0.3608,98144.0,98143.0,0.007]
[1739234596227,0.3608,98144.0,98139.0,0.00015283]
[1739234596626,0.3608,98144.0,98143.0,0.015]
[1739234596833,0.3608,98144.0,98139.0,0.00015283]
[1739234597125,0.3608,98144.0,98143.0,0.007]
[1739234597327,0.3618,98144.0,98143.0,0.007]
[1739234597514,0.37545911,98144.0,98143.0,0.007]
[1739234598119,0.37745911,98144.0,98143.0,0.007]
[1739234598528,0.37745911,98144.0,98139.0,0.00015283]
[1739234598823,0.37745911,98144.0,98120.0,0.36128308]
[1739234598824,0.2037739,98134.0,98120.0,0.36128308]
[1739234599021,0.3608,98123.0,98120.0,0.36128308]
[1739234599418,0.0311,98122.0,98120.0,0.36128308]
[1739234600118,0.0327,98121.0,98120.0,0.36128308]
[1739234600531,0.0327,98121.0,98120.0,0.36428308]
[1739234601236,0.0327,98121.0,98120.0,0.003]
[1739234601829,0.0327,98121.0,98111.0,0.00015283]
[1739234602027,0.032,98120.0,98111.0,0.00015283]
[1739234602225,0.3608,98113.0,98111.0,0.00015283]
[1739234602927,0.2038324,98106.0,98100.0,0.1]
[1739234603128,0.3608,98102.0,98100.0,0.1]
[1739234604231,0.3618,98102.0,98100.0,0.107]
[1739234604528,0.001,98102.0,98100.0,0.107]
[1739234605128,0.001,98102.0,98100.0,0.108]
[1739234609530,0.001,98102.0,98101.0,0.2038412]
[1739234610032,0.001,98102.0,98100.0,0.108]
[1739234610627,0.001,98102.0,98101.0,0.006]
[1739234611130,0.001,98102.0,98101.0,0.01]
[1739234611337,0.11428,98108.0,98101.0,0.004]
[1739234611535,0.001,98102.0,98101.0,0.004]
[1739234612240,0.001,98102.0,98100.0,0.111]
[1739234612829,0.3608,98105.0,98101.0,0.2038412]
[1739234613037,0.001,98102.0,98101.0,0.2405412]
[1739234613420,0.001,98102.0,98101.0,0.2717412]
[1739234613624,0.00015283,98111.0,98101.0,0.0619]
[1739234613834,0.00015283,98111.0,98106.0,0.2038299]
[1739234614028,0.00015283,98111.0,98101.0,0.0619]
[1739234614029,0.00015283,98111.0,98109.0,0.2038228]
[1739234615330,0.00015283,98111.0,98110.0,0.3608]
[1739234615635,0.00015283,98111.0,98110.0,0.3939]
[1739234616640,0.00115283,98111.0,98110.0,0.3939]
[1739234617329,0.00015283,98111.0,98110.0,0.3608]
[1739234617533,0.00115283,98111.0,98110.0,0.3608]
[1739234618540,0.00115283,98111.0,98110.0,0.3618]
[1739234624543,0.00115283,98111.0,98110.0,0.001]
[1739234626435,0.01231528,98111.0,98110.0,0.001]
[1739234627734,0.02631528,98111.0,98110.0,0.002]
[1739234628743,0.03031528,98111.0,98110.0,0.001]
[1739234629646,0.39111528,98111.0,98110.0,0.001]
[1739234630945,0.39111528,98111.0,98100.0,0.1]
[1739234631142,0.11230428,98110.0,98100.0,0.1]
[1739234632438,0.11230428,98110.0,98100.0,0.101]
[1739234632644,0.11330428,98110.0,98100.0,0.101]
[1739234633250,0.12130428,98110.0,98100.0,0.101]
[1739234633644,0.3608,98101.0,98100.0,0.101]
[1739234633851,0.47072,98101.0,98100.0,0.101]
[1739234634442,0.47072,98101.0,98070.0,0.36212308]
[1739234634651,0.3608,98082.0,98077.0,0.2038909]
[1739234635146,0.3608,98082.0,98073.0,0.2038985]
[1739234635349,0.3608,98082.0,98070.0,0.36128308]
[1739234635546,0.3608,98082.0,98071.0,0.00010295]
[1739234635852,0.2038837,98081.0,98079.0,0.005]
[1739234636157,0.2038992,98074.0,98064.0,0.36128308]
[1739234636339,0.3608,98068.0,98064.0,0.36128308]
[1739234638051,0.3608,98068.0,98046.0,0.43057392]
[1739234638052,0.203916,98065.0,98046.0,0.43057392]
[1739234638353,0.3608,98056.0,98047.0,0.3608]
[1739234639149,0.0387,98064.0,98047.0,0.3608]
[1739234639346,0.0387,98064.0,98053.0,0.2039404]
[1739234640144,0.001,98056.0,98055.0,0.2039368]
[1739234640346,0.001,98056.0,98055.0,0.5647368]
[1739234640952,0.00015291,98065.0,98064.0,0.2039181]
[1739234641146,0.00015291,98065.0,98064.0,0.5647181]
[1739234641843,0.3608,98090.0,98064.0,0.3608]
[1739234642043,0.3608,98090.0,98086.0,0.2038723]
[1739234643446,0.001,98087.0,98086.0,0.2038723]
[1739234644651,0.007,98087.0,98086.0,0.2038723]
[1739234645058,0.001,98087.0,98086.0,0.2038723]
[1739234645254,0.006,98087.0,98086.0,0.2038723]